fUSD/lending_fUSD_20240214
["ID","MTS","AMOUNT","RATE_DAILY","PERIOD"]
[314065665,1707953439974,-889.3,0.00033041,2]
[314065666,1707953439983,-157.42,0.00033268,2]
[314065667,1707953439992,-2698.53,0.00033278,2]
[314065668,1707953440002,-166.21,0.00033297,2]
[314065669,1707953440011,-5175.87933678,0.00033334,5]
[314065670,1707953440021,-2886.75,0.00033344,2]
[314065671,1707953440030,-1934.39555395,0.00033439,6]
[314065672,1707953440039,-152.65,0.000335,2]
[314065673,1707953440049,-152.65,0.000335,2]
[314065674,1707953440058,-152.65,0.000335,2]
[314065675,1707953440067,-152.65,0.000335,2]
[314065676,1707953440077,-152.65,0.000335,2]
[314065677,1707953440086,-152.65,0.000335,2]
[314065678,1707953440096,-152.65,0.000335,2]
[314065679,1707953440105,-152.65,0.000335,2]
[314065680,1707953440115,-152.65,0.000335,2]
[314065681,1707953440125,-152.65,0.000335,2]
[314065682,1707953440134,-152.65,0.000335,2]
[314065683,1707953440144,-152.65,0.000335,2]
[314065684,1707953440153,-152.65,0.000335,2]
[314065685,1707953440163,-152.65,0.000335,2]
[314065686,1707953440172,-152.65,0.000335,2]
[314065687,1707953440181,-152.65,0.000335,2]
[314065688,1707953440191,-10351.7586736,0.00033504,5]
[314065689,1707953440201,-23537.27913758,0.00033514,5]
[314065690,1707953440210,-151.0,0.00033731,120]
[314065691,1707953440220,-193.0,0.00033868,2]
[314065692,1707953440229,-5175.87933678,0.0003389,6]
[314065693,1707953440239,-543.72425603,0.000339,2]
[314065694,1707953440248,-153.54697611,0.000339,2]
[314065695,1707953440257,-153.54697605,0.000339,2]
[314065696,1707953440267,-153.54697605,0.000339,2]
[314065697,1707953440277,-3109.0,0.00034,2]
[314065698,1707953440286,-20617.0,0.00034,2]
[314065699,1707953440295,-4108.33,0.00034038,2]
[314065700,1707953440305,-153.54697605,0.00034185,2]
[314065701,1707953440314,-8000.0,0.000342,2]
[314065702,1707953440323,-23537.27913758,0.00034335,6]
[314065703,1707953440332,-2886.75,0.00034346,2]
[314065704,1707953440341,-543.72425602,0.00034373,2]
[314065705,1707953440350,-1432.36090749,0.00034412,4]
[314065706,1707953440360,-151.0,0.00034419,30]
[314065707,1707953440369,-766.728371,0.0003452,2]
[314065708,1707953440378,-637.32,0.00034521,2]
[314065709,1707953440388,-150.1,0.00034749,2]
[314065710,1707953440398,-7187.08218026,0.0003479,2]
[314065711,1707953440407,-7187.08218023,0.0003479,2]
[314065712,1707953440416,-7187.08218023,0.0003479,2]
[314065713,1707953440426,-7187.08218023,0.0003479,2]
[314065714,1707953440435,-7187.08218023,0.0003479,2]
[314065715,1707953440445,-7187.08218023,0.0003479,2]
[314065716,1707953440456,-1150.092557,0.00034794,2]
[314065717,1707953440466,-204.0,0.00034799,2]
[314065718,1707953440476,-4490.00851427,0.00034799,2]
[314065719,1707953440485,-4490.00851427,0.00034799,2]
[314065720,1707953440495,-157.42,0.00034834,2]
[314065722,1707953440504,-543.72425602,0.00034845,2]
[314065724,1707953440513,-4490.00851427,0.00034862,2]
[314065725,1707953440522,-7187.08218023,0.00034862,2]
[314065726,1707953440532,-151.01,0.00034889,5]
[314065727,1707953440542,-162.04,0.00034894,120]
[314065728,1707953440552,-2049.07824272,0.000349,2]
[314065729,1707953440561,-2049.07824269,0.000349,2]
[314065730,1707953440570,-2049.07824269,0.000349,2]
[314065731,1707953440579,-2049.07824269,0.000349,2]
[314065732,1707953440589,-1378.8313464,0.00034928,2]
[314065733,1707953440598,-430.74362359,0.00034928,2]
[314065734,1707953440608,-1533.456743,0.00034931,2]
[314065735,1707953440617,-16019.37922191,0.00034997,2]
[314065736,1707953440627,-3176928.74841489,0.00035,3]
[314065737,1707953440653,-496.97381975,0.00035,3]
[314065738,1707953440667,-510260.65130781,0.00035,3]
[314065739,1707953440676,-177.3,0.00035,2]
[314065740,1707953440685,-150.0,0.00035,2]
[314065741,1707953440696,-190000.0,0.00035,2]
[314065742,1707953440706,-153.87,0.00035,2]
[314065743,1707953440716,-153.87,0.00035,2]
[314065744,1707953440726,-150.0,0.00035,2]
[314065745,1707953440735,-1916.820929,0.00035068,2]
[314065746,1707953440744,-151.0,0.00035122,7]
[314065747,1707953440754,-2049.07824269,0.00035153,2]
[314065748,1707953440763,-23537.27913758,0.00035156,7]
[314065749,1707953440772,-1834.33,0.00035202,5]
[314065750,1707953440781,-1826.46,0.00035229,5]
[314065751,1707953440791,-1806.29,0.00035259,5]
[314065752,1707953440800,-1825.48,0.00035292,5]
[314065753,1707953440809,-1934.39555395,0.00035304,7]
[314065754,1707953440818,-889.3,0.00035305,2]
[314065755,1707953440828,-543.72425602,0.00035318,2]
[314065756,1707953440838,-1777.85,0.00035328,5]
[314065757,1707953440847,-2683.549301,0.00035342,2]
[314065758,1707953440856,-1785.49,0.00035368,5]
[314065759,1707953440865,-1813.29,0.0003541,5]
[314065760,1707953440874,-1000.0,0.00035451,2]
[314065761,1707953440883,-1788.46,0.00035457,5]
[314065762,1707953440893,-472.4141,0.00035483,2]
[314065763,1707953440902,-1832.0,0.00035507,5]
[314065764,1707953440911,-193.0,0.00035512,2]
[314065765,1707953440920,-4536.4346,0.00035516,2]
[314065766,1707953440930,-55555.0,0.00035516,3]
[314065767,1707953440939,-5000.0,0.00035516,3]
[314065768,1707953440949,-177.3,0.00035548,2]
[314065769,1707953440961,-150.0,0.00035548,2]
[314065770,1707953440971,-177.31122357,0.00035548,2]
[314065771,1707953440980,-1806.28,0.00035562,5]
[314065772,1707953440990,-152.65,0.000356,3]
[314065773,1707953440999,-152.65,0.000356,3]
[314065774,1707953441009,-152.65,0.000356,3]
[314065775,1707953441018,-152.65,0.000356,3]
[314065776,1707953441028,-152.65,0.000356,3]
[314065777,1707953441038,-152.65,0.000356,3]
[314065778,1707953441047,-152.65,0.000356,3]
[314065779,1707953441057,-152.65,0.000356,3]
[314065780,1707953441067,-152.65,0.000356,3]
[314065781,1707953441076,-152.65,0.000356,3]
[314065782,1707953441086,-152.65,0.000356,3]
[314065783,1707953441096,-152.65,0.000356,3]
[314065784,1707953441106,-152.65,0.000356,3]
[314065785,1707953441115,-152.65,0.000356,3]
[314065786,1707953441125,-152.65,0.000356,3]
[314065787,1707953441135,-152.65,0.000356,3]
[314065788,1707953441144,-4000.0,0.000356,2]
[314065789,1707953441154,-150.0,0.000356,2]
[314065790,1707953441164,-500.0,0.00035616,7]
[314065791,1707953441173,-525.81918598,0.00035616,7]
[314065792,1707953441182,-562.8369388,0.00035616,7]
[314065793,1707953441193,-528.08531566,0.00035616,7]
[314065794,1707953441203,-500.0,0.00035616,7]
[314065795,1707953441213,-257.00660511,0.00035616,7]
[314065796,1707953441223,-532.12600061,0.00035616,7]
[314065797,1707953441236,-523.84450252,0.00035616,7]
[314065798,1707953441246,-315.04106954,0.00035616,7]
[314065799,1707953441255,-530.23167114,0.00035616,7]
[314065800,1707953441264,-197.45471575,0.00035616,7]
[314065801,1707953441274,-502.38439998,0.00035616,7]
[314065802,1707953441283,-1004.11719576,0.00035616,2]
[314065803,1707953441293,-500.0,0.00035616,7]
[314065804,1707953441303,-500.0,0.00035616,7]
[314065805,1707953441313,-500.0,0.00035616,7]
[314065806,1707953441323,-500.0,0.00035616,7]
[314065807,1707953441332,-555.88273051,0.00035616,7]
[314065808,1707953441342,-186.49671655,0.00035616,7]
[314065809,1707953441351,-505.19132651,0.00035616,7]
[314065810,1707953441360,-500.0,0.00035616,7]
[314065811,1707953441370,-250.90274327,0.00035616,7]
[314065812,1707953441379,-500.0,0.00035616,7]
[314065813,1707953441388,-500.0,0.00035616,7]
[314065814,1707953441398,-178.12549345,0.00035616,7]
[314065815,1707953441407,-564.00722072,0.00035616,7]
[314065816,1707953441416,-500.0,0.00035616,7]
[314065817,1707953441426,-500.0,0.00035616,7]
[314065819,1707953441608,-500.0,0.00035616,7]
[314065821,1707953441618,-500.0,0.00035616,7]
[314065823,1707953441627,-1000.0,0.00035616,30]
[314065825,1707953441636,-500.0,0.00035616,7]
[314065826,1707953441645,-500.0,0.00035616,7]
[314065827,1707953441654,-500.0,0.00035616,7]
[314065828,1707953441664,-500.0,0.00035616,7]
[314065829,1707953441673,-500.0,0.00035616,7]
[314065830,1707953441683,-500.0,0.00035616,7]
[314065831,1707953441692,-500.0,0.00035616,7]
[314065832,1707953441700,-500.0,0.00035616,7]
[314065833,1707953441709,-500.0,0.00035616,7]
[314065834,1707953441718,-508.71671374,0.00035616,7]
[314065835,1707953441727,-500.0,0.00035616,7]
[314065836,1707953441736,-266.32722312,0.00035616,7]
[314065837,1707953441745,-625.75389932,0.00035616,7]
[314065838,1707953441754,-500.0,0.00035616,7]
[314065839,1707953441763,-647.12516023,0.00035616,7]
[314065840,1707953441772,-500.0,0.00035616,7]
[314065841,1707953441781,-500.0,0.00035616,7]
[314065842,1707953441790,-500.0,0.00035616,7]
[314065843,1707953441799,-500.0,0.00035616,7]
[314065844,1707953441808,-500.0,0.00035616,7]
[314065845,1707953441817,-500.0,0.00035616,7]
[314065846,1707953441827,-500.0,0.00035616,7]
[314065847,1707953441836,-500.0,0.00035616,7]
[314065848,1707953441845,-500.0,0.00035616,7]
[314065849,1707953441854,-500.0,0.00035616,7]
[314065850,1707953441863,-500.0,0.00035616,7]
[314065851,1707953441873,-500.0,0.00035616,7]
[314065852,1707953441881,-500.0,0.00035616,7]
[314065853,1707953441890,-598.40376996,0.00035616,7]
[314065854,1707953441899,-500.0,0.00035616,7]
[314065855,1707953441908,-500.0,0.00035616,7]
[314065856,1707953441918,-500.0,0.00035616,7]
[314065857,1707953441928,-500.0,0.00035616,7]
[314065858,1707953441937,-500.0,0.00035616,7]
[314065859,1707953441946,-500.0,0.00035616,7]
[314065860,1707953441955,-500.0,0.00035616,7]
[314065861,1707953441964,-500.0,0.00035616,7]
[314065862,1707953441973,-500.0,0.00035616,7]
[314065863,1707953441982,-500.0,0.00035616,7]
[314065864,1707953441991,-500.0,0.00035616,7]
[314065865,1707953442000,-500.0,0.00035616,7]
[314065866,1707953442009,-500.0,0.00035616,7]
[314065867,1707953442018,-575.43985981,0.00035616,7]
[314065868,1707953442027,-500.0,0.00035616,7]
[314065869,1707953442036,-500.0,0.00035616,7]
[314065870,1707953442045,-500.0,0.00035616,7]
[314065871,1707953442055,-500.0,0.00035616,7]
[314065872,1707953442064,-500.0,0.00035616,7]
[314065873,1707953442073,-161.23866034,0.00035616,7]
[314065874,1707953442082,-500.0,0.00035616,7]
[314065875,1707953442091,-500.0,0.00035616,7]
[314065876,1707953442101,-337.24959685,0.00035616,7]
[314065877,1707953442110,-500.0,0.00035616,7]
[314065878,1707953442120,-291.05026072,0.00035616,7]
[314065879,1707953442129,-500.0,0.00035616,7]
[314065880,1707953442139,-500.0,0.00035616,7]
[314065881,1707953442148,-500.0,0.00035616,7]
[314065882,1707953442157,-500.0,0.00035616,7]
[314065883,1707953442166,-500.0,0.00035616,7]
[314065884,1707953442176,-500.0,0.00035616,7]
[314065885,1707953442185,-500.0,0.00035616,7]
[314065886,1707953442195,-500.0,0.00035616,7]
[314065887,1707953442204,-500.0,0.00035616,7]
[314065888,1707953442213,-500.0,0.00035616,7]
[314065889,1707953442223,-563.13898913,0.00035616,7]
[314065890,1707953442232,-500.0,0.00035616,7]
[314065891,1707953442242,-500.0,0.00035616,7]
[314065892,1707953442252,-500.0,0.00035616,7]
[314065893,1707953442262,-500.0,0.00035616,7]
[314065894,1707953442271,-512.08185653,0.00035616,7]
[314065895,1707953442280,-592.97084048,0.00035616,7]
[314065896,1707953442289,-500.0,0.00035616,7]
[314065897,1707953442298,-250.27807058,0.00035616,7]
[314065898,1707953442308,-500.0,0.00035616,7]
[314065899,1707953442317,-500.0,0.00035616,7]
[314065900,1707953442326,-500.0,0.00035616,7]
[314065901,1707953442335,-500.0,0.00035616,7]
[314065902,1707953442344,-500.0,0.00035616,7]
[314065903,1707953442353,-500.0,0.00035616,7]
[314065904,1707953442362,-500.0,0.00035616,7]
[314065905,1707953442371,-500.0,0.00035616,7]
[314065906,1707953442380,-500.0,0.00035616,7]
[314065907,1707953442389,-563.07296697,0.00035616,7]
[314065908,1707953442398,-500.0,0.00035616,7]
[314065909,1707953442407,-518.38552324,0.00035616,7]
[314065910,1707953442417,-500.0,0.00035616,7]
[314065911,1707953442425,-500.0,0.00035616,7]
[314065912,1707953442434,-500.0,0.00035616,7]
[314065913,1707953442445,-500.0,0.00035616,7]
[314065914,1707953442455,-500.0,0.00035616,7]
[314065915,1707953442464,-1000.0,0.00035616,2]
[314065916,1707953442473,-500.0,0.00035616,7]
[314065917,1707953442482,-500.0,0.00035616,7]
[314065918,1707953442493,-537.52803141,0.00035616,7]
[314065919,1707953442502,-500.0,0.00035616,7]
[314065920,1707953442511,-500.0,0.00035616,7]
[314065921,1707953442522,-500.0,0.00035616,7]
[314065922,1707953442531,-500.0,0.00035616,7]
[314065923,1707953442540,-507.47887746,0.00035616,7]
[314065924,1707953442549,-500.0,0.00035616,7]
[314065925,1707953442558,-500.0,0.00035616,7]
[314065926,1707953442568,-500.0,0.00035616,7]
[314065927,1707953442577,-500.0,0.00035616,7]
[314065928,1707953442586,-500.0,0.00035616,7]
[314065929,1707953442595,-500.0,0.00035616,7]
[314065930,1707953442605,-235.52007296,0.00035616,7]
[314065931,1707953442615,-500.0,0.00035616,7]
[314065932,1707953442625,-500.0,0.00035616,7]
[314065933,1707953442634,-500.0,0.00035616,7]
[314065934,1707953442643,-500.0,0.00035616,7]
[314065935,1707953442653,-600.43569486,0.00035616,7]
[314065936,1707953442662,-500.0,0.00035616,7]
[314065937,1707953442671,-500.0,0.00035616,7]
[314065938,1707953442680,-500.0,0.00035616,7]
[314065939,1707953442689,-590.25719107,0.00035616,7]
[314065940,1707953442699,-500.0,0.00035616,7]
[314065941,1707953442712,-500.0,0.00035616,7]
[314065942,1707953442728,-500.0,0.00035616,7]
[314065943,1707953442742,-506.29717184,0.00035616,7]
[314065944,1707953442755,-553.01660713,0.00035616,7]
[314065945,1707953442766,-500.0,0.00035616,7]
[314065946,1707953442780,-500.0,0.00035616,7]
[314065947,1707953442793,-536.77015087,0.00035616,7]
[314065948,1707953442807,-500.0,0.00035616,7]
[314065949,1707953442821,-500.0,0.00035616,7]
[314065950,1707953442834,-500.0,0.00035616,2]
[314065951,1707953442845,-500.0,0.00035616,7]
[314065952,1707953442858,-500.0,0.00035616,7]
[314065953,1707953442871,-500.0,0.00035616,7]
[314065954,1707953442883,-324.75615045,0.00035616,7]
[314065955,1707953442895,-500.0,0.00035616,7]
[314065956,1707953442908,-500.0,0.00035616,7]
[314065957,1707953442921,-500.0,0.00035616,7]
[314065958,1707953442931,-500.0,0.00035616,7]
[314065959,1707953442945,-500.0,0.00035616,7]
[314065960,1707953442958,-614.78536327,0.00035616,7]
[314065961,1707953442972,-500.0,0.00035616,7]
[314065962,1707953442984,-500.0,0.00035616,7]
[314065963,1707953442995,-500.0,0.00035616,7]
[314065964,1707953443009,-500.0,0.00035616,7]
[314065965,1707953443022,-500.0,0.00035616,7]
[314065966,1707953443036,-500.0,0.00035616,7]
[314065967,1707953443050,-500.0,0.00035616,7]
[314065968,1707953443064,-500.0,0.00035616,7]
[314065969,1707953443077,-500.0,0.00035616,7]
[314065970,1707953443088,-500.0,0.00035616,7]
[314065971,1707953443098,-150.88132929,0.00035616,7]
[314065972,1707953443109,-500.0,0.00035616,7]
[314065973,1707953443123,-500.0,0.00035616,7]
[314065974,1707953443135,-500.0,0.00035616,7]
[314065975,1707953443147,-500.0,0.00035616,7]
[314065976,1707953443160,-500.0,0.00035616,7]
[314065977,1707953443171,-500.0,0.00035616,7]
[314065978,1707953443182,-500.0,0.00035616,7]
[314065979,1707953443193,-500.0,0.00035616,7]
[314065980,1707953443205,-500.0,0.00035616,7]
[314065981,1707953443216,-500.0,0.00035616,7]
[314065982,1707953443227,-500.0,0.00035616,7]
[314065983,1707953443240,-500.0,0.00035616,7]
[314065984,1707953443251,-500.0,0.00035616,7]
[314065985,1707953443263,-161.03105059,0.00035616,7]
[314065986,1707953443276,-500.0,0.00035616,7]
[314065987,1707953443288,-500.0,0.00035616,7]
[314065988,1707953443300,-500.0,0.00035616,7]
[314065989,1707953443311,-500.0,0.00035616,7]
[314065990,1707953443322,-500.0,0.00035616,7]
[314065991,1707953443333,-500.0,0.00035616,7]
[314065992,1707953443345,-500.0,0.00035616,7]
[314065993,1707953443356,-500.0,0.00035616,7]
[314065994,1707953443368,-632.58171871,0.00035616,7]
[314065995,1707953443378,-500.0,0.00035616,7]
[314065996,1707953443389,-500.47756137,0.00035616,7]
[314065997,1707953443401,-500.0,0.00035616,7]
[314065998,1707953443412,-500.0,0.00035616,7]
[314065999,1707953443423,-500.0,0.00035616,7]
[314066000,1707953443434,-500.0,0.00035616,7]
[314066001,1707953443445,-500.0,0.00035616,7]
[314066002,1707953443459,-500.0,0.00035616,7]
[314066003,1707953443470,-500.0,0.00035616,7]
[314066004,1707953443481,-500.0,0.00035616,7]
[314066005,1707953443492,-500.0,0.00035616,7]
[314066006,1707953443504,-500.0,0.00035616,7]
[314066007,1707953443516,-500.0,0.00035616,7]
[314066008,1707953443527,-500.0,0.00035616,7]
[314066009,1707953443539,-507.60412076,0.00035616,7]
[314066010,1707953443551,-500.0,0.00035616,7]
[314066011,1707953443562,-500.0,0.00035616,7]
[314066012,1707953443573,-560.68183204,0.00035616,7]
[314066013,1707953443584,-500.0,0.00035616,7]
[314066014,1707953443595,-500.0,0.00035616,7]
[314066015,1707953443606,-500.0,0.00035616,7]
[314066016,1707953443617,-500.0,0.00035616,7]
[314066017,1707953443628,-500.0,0.00035616,7]
[314066018,1707953443639,-530.68370045,0.00035616,7]
[314066019,1707953443650,-500.0,0.00035616,7]
[314066020,1707953443661,-500.0,0.00035616,7]
[314066021,1707953443673,-634.77660205,0.00035616,7]
[314066022,1707953443684,-505.60057309,0.00035616,7]
[314066023,1707953443695,-500.0,0.00035616,7]
[314066024,1707953443707,-500.0,0.00035616,7]
[314066025,1707953443719,-573.97,0.00035616,7]
[314066026,1707953443731,-500.0,0.00035616,2]
[314066027,1707953443743,-500.0,0.00035616,7]
[314066028,1707953443754,-500.0,0.00035616,7]
[314066029,1707953443765,-500.0,0.00035616,7]
[314066030,1707953443776,-500.0,0.00035616,7]
[314066031,1707953443787,-500.0,0.00035616,7]
[314066032,1707953443798,-500.0,0.00035616,7]
[314066033,1707953443809,-500.0,0.00035616,7]
[314066034,1707953443820,-500.0,0.00035616,7]
[314066035,1707953443832,-500.0,0.00035616,7]
[314066036,1707953443843,-500.0,0.00035616,7]
[314066037,1707953443854,-500.0,0.00035616,7]
[314066038,1707953443865,-500.0,0.00035616,7]
[314066039,1707953443876,-500.0,0.00035616,7]
[314066040,1707953443887,-500.0,0.00035616,7]
[314066041,1707953443898,-500.0,0.00035616,7]
[314066042,1707953443909,-500.0,0.00035616,7]
[314066043,1707953443921,-500.0,0.00035616,7]
[314066044,1707953443933,-410.1143133,0.00035616,7]
[314066045,1707953443945,-467.09727523,0.00035616,7]
[314066046,1707953443956,-531.94385063,0.00035616,7]
[314066047,1707953443968,-500.0,0.00035616,7]
[314066048,1707953443979,-500.0,0.00035616,7]
[314066049,1707953443992,-500.0,0.00035616,7]
[314066050,1707953444001,-557.45594443,0.00035616,7]
[314066051,1707953444010,-500.0,0.00035616,7]
[314066052,1707953444020,-500.0,0.00035616,7]
[314066053,1707953444029,-500.0,0.00035616,7]
[314066054,1707953444038,-500.0,0.00035616,7]
[314066055,1707953444048,-500.0,0.00035616,7]
[314066056,1707953444057,-500.0,0.00035616,7]
[314066057,1707953444066,-500.0,0.00035616,7]
[314066058,1707953444267,-321.84,0.00035616,7]
[314066059,1707953444284,-150.0,0.00035616,7]
[314066060,1707953444293,-500.0,0.00035616,7]
[314066061,1707953444302,-500.0,0.00035616,7]
[314066062,1707953444311,-500.0,0.00035616,7]
[314066063,1707953444320,-500.0,0.00035616,7]
[314066064,1707953444329,-500.0,0.00035616,7]
[314066065,1707953444338,-500.0,0.00035616,7]
[314066066,1707953444347,-491.1233615,0.00035616,7]
[314066067,1707953444356,-500.0,0.00035616,7]
[314066068,1707953444365,-500.0,0.00035616,7]
[314066069,1707953444373,-500.0,0.00035616,7]
[314066070,1707953444382,-500.0,0.00035616,7]
[314066071,1707953444391,-500.0,0.00035616,7]
[314066072,1707953444400,-520.9447256,0.00035616,7]
[314066073,1707953444409,-500.0,0.00035616,7]
[314066074,1707953444418,-396.33282604,0.00035616,7]
[314066075,1707953444427,-500.0,0.00035616,7]
[314066076,1707953444437,-1000.0,0.00035616,7]
[314066077,1707953444448,-500.0,0.00035616,7]
[314066078,1707953444459,-500.0,0.00035616,7]
[314066079,1707953444468,-500.0,0.00035616,7]
[314066080,1707953444477,-500.0,0.00035616,7]
[314066081,1707953444487,-500.0,0.00035616,7]
[314066082,1707953444497,-500.0,0.00035616,7]
[314066083,1707953444506,-500.0,0.00035616,7]
[314066084,1707953444514,-500.0,0.00035616,7]
[314066085,1707953444525,-500.0,0.00035616,7]
[314066086,1707953444533,-157.59423856,0.00035616,7]
[314066087,1707953444542,-500.0,0.00035616,7]
[314066088,1707953444551,-500.0,0.00035616,7]
[314066089,1707953444560,-500.0,0.00035616,7]
[314066090,1707953444569,-500.0,0.00035616,7]
[314066091,1707953444578,-500.0,0.00035616,7]
[314066092,1707953444587,-500.0,0.00035616,7]
[314066093,1707953444596,-553.41054158,0.00035616,7]
[314066094,1707953444606,-500.0,0.00035616,7]
[314066095,1707953444615,-500.0,0.00035616,7]
[314066096,1707953444625,-500.0,0.00035616,7]
[314066097,1707953444634,-500.0,0.00035616,7]
[314066098,1707953444644,-500.0,0.00035616,7]
[314066099,1707953444653,-500.0,0.00035616,7]
[314066100,1707953444662,-320.18042535,0.00035616,7]
[314066101,1707953444671,-500.0,0.00035616,7]
[314066102,1707953444680,-419.2417394,0.00035616,7]
[314066103,1707953444689,-500.0,0.00035616,7]
[314066104,1707953444699,-500.0,0.00035616,7]
[314066105,1707953444708,-500.0,0.00035616,7]
[314066106,1707953444717,-549.04567275,0.00035616,7]
[314066107,1707953444726,-500.0,0.00035616,7]
[314066108,1707953444735,-500.0,0.00035616,7]
[314066109,1707953444748,-500.0,0.00035616,7]
[314066110,1707953444757,-500.0,0.00035616,7]
[314066111,1707953444766,-500.0,0.00035616,7]
[314066112,1707953444775,-500.0,0.00035616,7]
[314066113,1707953444784,-500.0,0.00035616,7]
[314066114,1707953444793,-500.0,0.00035616,7]
[314066115,1707953444802,-500.0,0.00035616,7]
[314066116,1707953444811,-500.0,0.00035616,7]
[314066117,1707953444820,-500.0,0.00035616,7]
[314066118,1707953444829,-500.0,0.00035616,7]
[314066119,1707953444838,-500.0,0.00035616,7]
[314066120,1707953444847,-500.0,0.00035616,7]
[314066121,1707953444855,-500.0,0.00035616,7]
[314066122,1707953444865,-500.0,0.00035616,10]
[314066123,1707953444877,-500.0,0.00035616,7]
[314066124,1707953444886,-500.0,0.00035616,7]
[314066125,1707953444895,-500.0,0.00035616,7]
[314066126,1707953444903,-500.0,0.00035616,7]
[314066127,1707953444912,-500.0,0.00035616,7]
[314066128,1707953444921,-500.0,0.00035616,7]
[314066129,1707953444930,-500.0,0.00035616,7]
[314066130,1707953444939,-500.0,0.00035616,7]
[314066131,1707953444949,-500.0,0.00035616,7]
[314066132,1707953444958,-500.0,0.00035616,7]
[314066133,1707953444967,-500.0,0.00035616,7]
[314066134,1707953444976,-500.0,0.00035616,7]
[314066135,1707953444985,-500.0,0.00035616,7]
[314066136,1707953444994,-500.0,0.00035616,7]
[314066137,1707953445004,-500.0,0.00035616,7]
[314066138,1707953445013,-500.0,0.00035616,7]
[314066139,1707953445022,-500.0,0.00035616,7]
[314066140,1707953445031,-500.0,0.00035616,7]
[314066141,1707953445040,-504.84264657,0.00035616,7]
[314066142,1707953445049,-500.0,0.00035616,7]
[314066143,1707953445058,-500.0,0.00035616,7]
[314066144,1707953445067,-500.0,0.00035616,7]
[314066145,1707953445076,-500.0,0.00035616,7]
[314066146,1707953445086,-500.0,0.00035616,7]
[314066147,1707953445095,-500.0,0.00035616,7]
[314066148,1707953445103,-500.0,0.00035616,7]
[314066149,1707953445112,-500.0,0.00035616,7]
[314066150,1707953445121,-500.0,0.00035616,2]
[314066151,1707953445130,-500.0,0.00035616,7]
[314066152,1707953445139,-500.0,0.00035616,7]
[314066153,1707953445149,-500.0,0.00035616,7]
[314066154,1707953445158,-500.0,0.00035616,7]
[314066155,1707953445167,-500.0,0.00035616,7]
[314066156,1707953445176,-500.0,0.00035616,7]
[314066157,1707953445185,-598.25389355,0.00035616,7]
[314066158,1707953445194,-500.0,0.00035616,7]
[314066159,1707953445204,-500.0,0.00035616,7]
[314066160,1707953445213,-500.0,0.00035616,7]
[314066161,1707953445222,-522.17797962,0.00035616,7]
[314066162,1707953445231,-508.10406833,0.00035616,7]
[314066163,1707953445241,-500.0,0.00035616,7]
[314066164,1707953445250,-500.0,0.00035616,7]
[314066165,1707953445259,-500.0,0.00035616,7]
[314066166,1707953445269,-2731.74,0.00035616,7]
[314066167,1707953445278,-500.0,0.00035616,7]
[314066168,1707953445287,-500.0,0.00035616,7]
[314066169,1707953445296,-500.0,0.00035616,7]
[314066170,1707953445305,-500.0,0.00035616,7]